bitfinex-derivatives/quotes_SOLF0:USTF0_20250507
["timestamp","ask_amount","ask_price","bid_price","bid_amount"]
[1746636459157,4.2862,146.21,146.12,30.1]
[1746636459351,2.1445,146.21,146.12,30.1]
[1746636459557,2.1445,146.21,146.13,4.2523]
[1746636459756,2.2013,146.24,146.13,4.2523]
[1746636459957,6.8387,146.21,146.17,6.84]
[1746636460155,4.3458,146.24,146.16,30.08]
[1746636460753,6.8381,146.22,146.18,6.8396]
[1746636460955,4.3458,146.24,146.16,30.08]
[1746636461152,8.9817,146.24,146.2,6.8388]
[1746636461356,30.08,146.28,146.2,30.08]
[1746636461750,97.21447054,146.3,146.2,30.08]
[1746636461950,97.21447054,146.3,146.21,4.218]
[1746636462248,6.8348,146.29,146.25,6.8363]
[1746636462449,6.8348,146.29,146.26,30.08]
[1746636463158,97.21447054,146.3,146.26,30.08]
[1746636463759,6.8348,146.29,146.26,30.08]
[1746636464255,6.8352,146.28,146.26,30.08]
[1746636464455,97.21447054,146.3,146.26,30.08]
[1746636464861,2.0471,146.34,146.26,30.08]
[1746636465063,6.8356,146.27,146.26,30.08]
[1746636466060,6.8353,146.28,146.26,30.08]
[1746636466560,30.28,146.33,146.26,30.08]
[1746636467761,6.8354,146.28,146.26,30.08]
[1746636467962,30.28,146.33,146.26,30.08]
[1746636468362,6.8354,146.28,146.26,30.08]
[1746636469762,6.8356,146.27,146.26,30.08]
[1746636471966,6.8353,146.28,146.26,30.08]
[1746636472358,30.28,146.33,146.26,30.08]
[1746636472964,6.835,146.29,146.26,30.08]
[1746636473264,30.28,146.33,146.26,30.08]
[1746636473463,6.8342,146.3,146.26,30.08]
[1746636473764,6.8342,146.3,146.26,36.9158]
[1746636474559,30.28,146.33,146.26,30.08]
[1746636474560,6.8349,146.29,146.26,30.08]
[1746636474964,30.28,146.33,146.26,30.08]
[1746636475161,6.8354,146.28,146.26,30.08]
[1746636475565,30.28,146.33,146.26,30.08]
[1746636475761,6.8356,146.27,146.26,30.08]
[1746636475961,30.28,146.33,146.23,30.26]
[1746636476161,31.64677373,146.33,146.23,30.26]
[1746636476363,6.8365,146.26,146.23,30.26]
[1746636476665,31.64677373,146.33,146.23,30.26]
[1746636476862,6.8359,146.27,146.23,37.0972]
[1746636477262,31.64677373,146.33,146.23,37.0972]
[1746636477459,6.8358,146.27,146.24,6.8369]
[1746636477666,31.64677373,146.33,146.24,6.8369]
[1746636477871,6.8352,146.28,146.24,6.8369]
[1746636479271,6.8352,146.28,146.25,6.8365]
[1746636479462,6.8348,146.29,146.25,6.8365]
[1746636479770,6.8348,146.29,146.23,30.26]
[1746636479771,31.64677373,146.33,146.23,30.26]
[1746636480071,6.8338,146.31,146.23,30.26]
[1746636480468,6.8338,146.31,146.27,6.8355]
[1746636481271,6.8343,146.3,146.27,6.8355]
[1746636481470,31.64677373,146.33,146.23,30.26]
[1746636481671,6.8354,146.28,146.23,30.26]
[1746636482171,6.8349,146.29,146.23,30.26]
[1746636482370,6.8349,146.29,146.25,6.8364]
[1746636482764,6.8349,146.29,146.23,30.26]
[1746636482968,6.8344,146.3,146.26,6.8358]
[1746636483270,31.64677373,146.33,146.23,30.26]
[1746636483470,6.8339,146.31,146.23,30.26]
[1746636483674,1.36677373,146.33,146.23,30.26]
[1746636483969,8.19977373,146.33,146.24,0.8148]
[1746636484175,8.19977373,146.33,146.29,6.8343]
[1746636484367,6.8333,146.32,146.29,30.24]
[1746636484567,1.36677373,146.33,146.29,30.24]
[1746636484760,1.36677373,146.33,146.29,37.0744]
[1746636485171,8.19987373,146.33,146.29,30.24]
[1746636485370,1.36677373,146.33,146.29,30.24]
[1746636485670,6.8335,146.32,146.29,30.24]
[1746636486769,6.8338,146.31,146.29,30.24]
[1746636487472,1.36677373,146.33,146.29,30.24]
[1746636487969,6.8336,146.32,146.29,30.24]
[1746636488469,6.8336,146.32,146.29,37.0746]
[1746636489169,1.36677373,146.33,146.29,37.0746]
[1746636489366,1.36677373,146.33,146.29,30.24]
[1746636489672,6.8335,146.32,146.29,30.24]
[1746636490473,6.8338,146.31,146.29,30.24]
[1746636492277,6.8336,146.32,146.29,37.0746]
[1746636492777,6.8336,146.32,146.29,30.24]
[1746636492979,8.19977373,146.33,146.29,30.24]
[1746636493279,6.833,146.33,146.29,30.24]
[1746636493772,6.8334,146.32,146.29,30.24]
[1746636494177,6.8338,146.31,146.29,30.24]
[1746636494479,4.1664,146.36,146.29,30.24]
[1746636495679,6.834,146.31,146.29,30.24]
[1746636496678,6.8334,146.32,146.29,30.24]
[1746636497178,6.8334,146.32,146.29,37.0744]
[1746636498282,4.1664,146.36,146.29,30.24]
[1746636499484,6.8339,146.31,146.29,30.24]
[1746636500883,6.8335,146.32,146.29,30.24]
[1746636501484,6.8338,146.31,146.29,30.24]
[1746636502386,6.8342,146.3,146.29,30.24]
[1746636502578,4.1664,146.36,146.26,30.22]
[1746636502985,6.8355,146.28,146.26,30.22]
[1746636503185,30.22,146.33,146.24,30.22]
[1746636503385,6.8359,146.27,146.24,30.22]
[1746636503881,6.8359,146.27,146.24,37.057]
[1746636504085,6.8359,146.27,146.24,30.22]
[1746636504687,2.1785,146.32,146.21,2.1463]
[1746636504885,2.1785,146.32,146.21,30.22]
[1746636505284,6.8372,146.24,146.21,30.22]
[1746636506781,30.22,146.23,146.08,24.32904823]
[1746636506983,51.06548642,146.22,146.08,24.32904823]
[1746636507183,1.24788383,146.21,146.1,4.0309]
[1746636507391,51.18540453,146.22,146.1,4.0309]
[1746636508085,31.58780194,146.22,146.1,4.0309]
[1746636508278,1.36780194,146.22,146.1,4.0309]
[1746636508483,31.58780194,146.22,146.1,4.0309]
[1746636508687,6.8399,146.18,146.12,6.8424]
[1746636508888,31.58780194,146.22,146.13,30.22]
[1746636509797,6.8424,146.13,146.1,34.2509]
[1746636510187,49.81760259,146.18,146.1,34.2509]
[1746636510390,49.81760259,146.18,146.1,30.22]
[1746636510391,2.1219,146.17,146.1,30.22]
[1746636510600,6.8434,146.11,146.07,31.0563]
[1746636510794,2.1219,146.17,146.07,31.0563]
[1746636510996,6.8432,146.11,146.07,31.0563]
[1746636511698,2.1219,146.17,146.08,6.8444]
[1746636512094,2.1219,146.17,146.07,31.0563]
[1746636512299,2.1219,146.17,146.09,6.8439]
[1746636512799,6.8421,146.14,146.09,6.8439]
[1746636512997,6.8421,146.14,146.1,6.8435]
[1746636513298,2.1219,146.17,146.07,31.0563]
[1746636513801,2.1219,146.17,146.07,30.24]
[1746636514402,6.8434,146.11,146.07,30.24]
[1746636514899,6.8434,146.11,146.07,37.0849]
[1746636515399,6.8434,146.11,146.07,30.24]
[1746636516398,30.24,146.14,146.07,30.24]
[1746636516598,30.24,146.14,146.06,4.0985]
[1746636516800,6.8448,146.08,146.06,4.0985]
[1746636517295,30.24,146.14,146.06,4.0985]
[1746636517600,30.24,146.14,146.06,10.9435]
[1746636517799,6.8438,146.1,146.06,4.0985]
[1746636518200,6.8438,146.1,146.06,10.9439]
[1746636518503,6.8443,146.09,146.06,4.0985]
[1746636519703,6.8443,146.09,146.06,10.9439]
[1746636520502,6.8443,146.09,146.06,4.0985]
[1746636522005,6.8446,146.08,146.06,4.0985]
[1746636522909,6.8442,146.09,146.06,10.9438]
[1746636523105,6.8442,146.09,146.06,4.0985]
[1746636523309,6.8436,146.1,146.07,6.8446]
[1746636524909,6.8436,146.1,146.08,6.8445]
[1746636525906,6.8436,146.1,146.07,6.8448]
[1746636526205,6.8436,146.1,146.06,4.0985]
[1746636526405,6.8436,146.1,146.07,6.8446]
[1746636528008,6.8436,146.1,146.08,6.8444]
[1746636528203,6.8433,146.11,146.08,6.8444]
[1746636529310,6.8436,146.1,146.08,6.8444]
[1746636529710,30.24,146.14,146.08,6.8444]
[1746636529905,6.8434,146.11,146.08,6.8444]
[1746636531014,6.8437,146.1,146.07,6.8448]
[1746636531311,49.83760259,146.14,146.05,30.24]
[1746636531506,49.83760259,146.14,146.06,4.2251]
[1746636531811,6.8429,146.12,146.09,6.844]
[1746636536312,6.8431,146.11,146.08,6.8443]
[1746636537814,6.8437,146.1,146.07,6.8447]
[1746636540217,6.844,146.09,146.07,6.8447]
[1746636540518,30.24,146.14,146.07,6.8447]
[1746636541513,6.8438,146.1,146.07,6.8447]
[1746636543319,6.8438,146.1,146.08,6.8445]
[1746636543515,30.24,146.14,146.06,4.2251]
[1746636544022,6.8426,146.13,146.06,4.2251]
[1746636544215,30.24,146.14,146.06,4.2251]
[1746636544623,6.8428,146.12,146.06,4.2251]
[1746636544921,30.24,146.14,146.06,4.2251]
[1746636545221,6.8434,146.11,146.08,6.8443]
[1746636545523,30.24,146.14,146.06,4.2251]
[1746636545720,32.4323,146.14,146.05,30.24]
[1746636546021,6.8443,146.09,146.06,6.8452]
[1746636546920,6.8443,146.09,146.05,30.24]
[1746636547326,34.4716,146.14,146.05,30.24]
[1746636547327,6.8438,146.1,146.05,30.24]
[1746636547623,6.8438,146.1,146.07,6.8446]
[1746636547821,6.8438,146.1,146.05,30.24]
[1746636549527,6.8433,146.11,146.05,30.24]
[1746636549724,34.4716,146.14,146.05,30.24]
[1746636550025,6.8431,146.11,146.05,30.24]
[1746636550229,32.5219,146.17,146.11,6.8428]
[1746636550422,32.5219,146.17,146.09,30.4]
[1746636550620,6.8417,146.14,146.09,30.4]
[1746636551223,6.8414,146.15,146.09,30.4]
[1746636551423,6.8414,146.15,146.13,6.8419]
[1746636551931,6.841,146.16,146.13,6.8419]
[1746636552132,2.1219,146.17,146.14,6.8413]
[1746636552419,30.4,146.2,146.13,30.4]
[1746636552618,30.4,146.2,146.17,6.84]
[1746636552815,3.45490194,146.22,146.17,6.84]
[1746636553019,6.8394,146.19,146.17,6.84]
[1746636553219,3.45490194,146.22,146.17,6.84]
[1746636553626,6.8391,146.2,146.17,6.84]
[1746636554225,3.45490194,146.22,146.13,30.4]
[1746636554428,5.55200194,146.22,146.13,30.4]
[1746636554623,12.25490886,146.2,146.13,30.4]
[1746636554927,30.1,146.19,146.13,30.4]
[1746636555129,30.1,146.19,146.1,32.131]
[1746636555422,30.1,146.19,146.1,36.9433]
[1746636556327,6.8415,146.15,146.1,36.9433]
[1746636556527,6.8415,146.15,146.11,6.8429]
[1746636557024,6.841,146.16,146.12,6.8424]
[1746636557231,30.1,146.19,146.1,30.1]
[1746636558631,30.1,146.19,146.14,6.8415]
[1746636558927,30.1,146.19,146.1,30.1]
[1746636559329,6.8407,146.17,146.13,6.8419]
[1746636559529,30.1,146.19,146.13,6.8419]
[1746636560026,30.1,146.19,146.12,6.8426]
[1746636560231,30.1,146.19,146.1,30.1]
[1746636560423,6.8419,146.14,146.1,30.1]
[1746636560823,6.8419,146.14,146.1,36.9434]
[1746636561225,6.8415,146.15,146.1,30.1]
[1746636561529,30.1,146.19,146.1,30.1]
[1746636561930,6.8409,146.16,146.13,6.8419]
[1746636563027,6.8413,146.15,146.1,30.1]
[1746636563231,30.1,146.19,146.1,30.1]
[1746636563832,6.8419,146.14,146.11,6.8428]
[1746636564333,6.8422,146.13,146.1,36.9433]
[1746636564533,49.69861863,146.19,146.1,30.1]
[1746636565233,30.1,146.19,146.1,30.1]
[1746636566039,6.8426,146.13,146.09,6.8438]
[1746636566434,30.1,146.15,146.09,6.8438]
[1746636566635,2.1645,146.14,146.09,6.8438]
[1746636566835,6.8425,146.13,146.09,6.8438]
[1746636567237,6.8425,146.13,146.1,6.8434]
[1746636568239,9.0064,146.14,146.11,6.8431]
[1746636568839,6.8422,146.13,146.1,6.8433]
[1746636569239,2.1645,146.14,146.07,621.48]
[1746636569739,9.0064,146.14,146.11,6.8428]
[1746636571038,6.8424,146.13,146.1,6.8433]
[1746636571240,2.1645,146.14,146.1,6.8433]
[1746636571434,2.1645,146.14,146.07,621.48]
[1746636571638,6.8429,146.12,146.09,6.8437]
[1746636571839,6.8429,146.12,146.07,30.1]
[1746636572140,6.8429,146.12,146.09,6.8437]
[1746636572839,6.8429,146.12,146.1,6.8435]
[1746636574639,6.8429,146.12,146.07,30.1]
[1746636574843,2.1645,146.14,146.09,6.8438]
[1746636575038,2.1645,146.14,146.07,30.1]
[1746636575243,6.4179,146.14,146.08,6.8442]
[1746636576340,6.8435,146.11,146.08,6.8442]
[1746636576639,6.8435,146.11,146.07,36.9447]
[1746636577442,6.4179,146.14,146.08,6.8444]
[1746636577643,6.4179,146.14,146.07,30.1]
[1746636578244,6.8439,146.1,146.07,36.9447]
[1746636579851,6.4179,146.14,146.08,6.8444]
[1746636579852,6.8433,146.11,146.08,6.8444]
[1746636580143,6.4179,146.14,146.07,30.1]
[1746636580345,9.0065,146.14,146.07,30.1]
[1746636581245,2.1645,146.14,146.07,30.1]
[1746636581443,30.1,146.15,146.07,30.1]
[1746636581744,6.842,146.14,146.11,6.8428]
[1746636582145,2.1205,146.17,146.11,6.8428]
[1746636582345,2.1205,146.17,146.12,6.8425]
[1746636582946,6.841,146.16,146.12,6.8425]
[1746636583150,2.1205,146.17,146.11,6.8429]
[1746636583346,2.1205,146.17,146.08,2.1678]
[1746636583646,6.841,146.16,146.09,2.0359]
[1746636583951,6.841,146.16,146.12,6.8423]
[1746636584142,6.841,146.16,146.11,30.1]
[1746636584447,6.8415,146.15,146.11,36.9429]
[1746636584949,2.1205,146.17,146.11,30.1]
[1746636585250,6.8419,146.14,146.11,30.1]
[1746636585746,6.8419,146.14,146.11,36.943]
[1746636585947,6.8419,146.14,146.11,30.1]
[1746636587247,6.8419,146.14,146.11,36.9428]
[1746636589748,6.8424,146.13,146.11,30.1]
[1746636590243,6.8424,146.13,146.11,36.9429]
[1746636590450,6.8419,146.14,146.11,36.9429]
[1746636591943,6.8419,146.14,146.12,6.8426]
[1746636592147,2.1205,146.17,146.11,30.1]
[1746636592642,6.8416,146.15,146.11,30.1]
[1746636592946,2.1205,146.17,146.11,30.1]
[1746636593248,6.842,146.14,146.11,36.9428]
[1746636593448,2.1205,146.17,146.11,30.1]
[1746636593638,6.8417,146.14,146.12,6.8423]
[1746636594044,2.1205,146.17,146.12,6.8423]
[1746636594247,6.8415,146.15,146.12,6.8423]
[1746636594849,6.8415,146.15,146.13,6.8421]
[1746636595853,6.8415,146.15,146.12,6.8424]
[1746636596148,6.8415,146.15,146.11,30.1]
[1746636596353,6.8415,146.15,146.13,6.8421]
[1746636597253,6.8409,146.16,146.14,6.8416]
[1746636597551,30.1,146.18,146.14,6.8416]
[1746636597751,6.8408,146.16,146.14,6.8416]
[1746636598356,30.1,146.18,146.15,6.8412]
[1746636598553,6.8406,146.17,146.11,30.1]
[1746636598852,6.8406,146.17,146.14,6.8415]
[1746636599254,6.841,146.16,146.13,6.842]
[1746636599553,30.1,146.18,146.11,30.1]
[1746636599850,6.8414,146.15,146.12,6.8423]
[1746636600454,6.8414,146.15,146.11,36.9429]
[1746636600655,6.8417,146.14,146.11,36.9429]
[1746636601157,30.1,146.18,146.12,6.8426]
[1746636601453,622.84780194,146.22,146.11,30.1]
[1746636601649,31.46780194,146.22,146.11,30.1]
[1746636601850,6.8391,146.2,146.11,30.1]
[1746636602250,6.8391,146.2,146.17,6.8401]
[1746636602952,6.8391,146.2,146.18,6.8396]
[1746636603157,6.8386,146.21,146.16,30.1]
[1746636603358,1.36780194,146.22,146.17,4.1569]
[1746636603565,8.20610194,146.22,146.18,6.8396]
[1746636604055,1.36780194,146.22,146.18,6.8396]
[1746636604257,6.8387,146.21,146.18,6.8396]
[1746636604756,6.8393,146.2,146.17,10.997]
[1746636604952,1.36780194,146.22,146.17,4.1569]
[1746636605250,1.36780194,146.22,146.16,30.1]
[1746636606056,6.8401,146.18,146.16,30.1]
[1746636606559,1.36780194,146.22,146.13,36.9219]
[1746636606760,6.841,146.16,146.13,30.08]
[1746636607558,6.841,146.16,146.13,36.9219]
[1746636607960,6.8413,146.15,146.13,30.08]
[1746636608153,44.36297343,146.21,146.13,30.08]
[1746636608761,6.841,146.16,146.13,30.08]
[1746636609861,6.841,146.16,146.13,36.9221]
[1746636610662,6.8413,146.15,146.13,30.08]
[1746636611263,6.841,146.16,146.13,30.08]
[1746636612864,6.8414,146.15,146.13,30.08]
[1746636613163,44.36297343,146.21,146.13,30.08]
[1746636614258,6.8415,146.15,146.13,30.08]
[1746636614458,44.36297343,146.21,146.13,30.08]
[1746636614655,12.25707343,146.18,146.1,30.06]
[1746636614864,34.2417,146.17,146.1,30.06]
[1746636615663,6.8424,146.13,146.1,36.9033]
[1746636615964,34.2417,146.17,146.1,30.06]
[1746636616565,6.8427,146.12,146.1,30.06]
[1746636617168,6.8431,146.11,146.1,30.06]
[1746636617367,34.2417,146.17,146.1,30.06]
[1746636617668,34.2417,146.17,146.07,30.08]
[1746636617968,12.25707343,146.15,146.07,30.08]
[1746636618166,2.0579,146.14,146.07,30.08]
[1746636618574,30.08,146.13,146.07,30.08]
[1746636618861,6.8438,146.1,146.07,36.9248]
[1746636619073,30.08,146.13,146.07,30.08]
[1746636620167,6.8428,146.12,146.07,36.9249]
[1746636620371,2.0579,146.14,146.07,30.08]
[1746636620565,30.08,146.16,146.08,2.1326]
[1746636621067,36.921,146.16,146.11,6.843]
[1746636621268,36.921,146.16,146.09,2.2004]
[1746636621667,36.921,146.16,146.13,6.8421]
[1746636622270,30.08,146.16,146.09,2.2004]
[1746636622472,32.2088,146.19,146.1,30.08]
[1746636622868,30.08,146.19,146.1,30.08]
[1746636623068,31.44780194,146.22,146.1,30.08]
[1746636623269,6.8393,146.19,146.16,6.8404]
[1746636623770,6.8393,146.19,146.14,30.08]
[1746636623969,31.44780194,146.22,146.14,30.08]
[1746636624561,31.44780194,146.22,146.09,2.2004]
[1746636624562,31.44780194,146.22,146.11,30.08]
[1746636624769,51.0482421,146.22,146.11,30.08]
[1746636625077,6.8419,146.14,146.11,30.08]
[1746636625368,30.08,146.18,146.11,30.08]
[1746636625968,6.8421,146.14,146.11,30.08]
[1746636626176,2.16,146.17,146.11,30.08]
[1746636626470,6.8431,146.12,146.09,2.2004]
[1746636626863,6.8431,146.12,146.09,9.0443]
[1746636627768,6.8423,146.13,146.1,6.8435]
[1746636628071,2.16,146.17,146.09,2.2004]
[1746636628773,6.8415,146.15,146.11,6.8429]
[1746636628972,6.8415,146.15,146.09,2.2004]
[1746636629574,6.8415,146.15,146.13,6.8421]
[1746636630072,6.8409,146.16,146.09,2.2004]
[1746636630468,30.08,146.21,146.15,6.8409]
[1746636630669,32.0862,146.21,146.13,30.08]
[1746636631072,32.0862,146.21,146.17,6.84]
[1746636631371,1.36780194,146.22,146.14,2.1083]
[1746636631572,1.36780194,146.22,146.18,6.8395]
[1746636631765,6.8386,146.21,146.15,2.1819]
[1746636632068,6.8386,146.21,146.18,6.8394]
[1746636632269,8.20600194,146.22,146.17,30.08]
[1746636632770,6.8382,146.22,146.19,6.8393]
[1746636632979,6.8385,146.21,146.17,30.08]
[1746636633175,32.2002,146.24,146.17,30.08]
[1746636634676,6.8392,146.2,146.17,30.08]
[1746636634979,6.8392,146.2,146.17,36.9202]
[1746636635381,6.8385,146.21,146.17,30.08]
[1746636635580,32.2002,146.24,146.17,30.08]
[1746636636582,32.2002,146.24,146.17,36.92]
[1746636637485,6.8388,146.21,146.17,36.92]
[1746636638285,32.2002,146.24,146.18,6.8396]
[1746636638484,32.2002,146.24,146.17,30.08]
[1746636638784,6.8387,146.21,146.17,36.9198]
[1746636638981,591.28,146.27,146.17,30.08]
[1746636639283,30.06,146.27,146.17,30.08]
[1746636639485,6.8373,146.24,146.2,6.8389]
[1746636639685,30.06,146.27,146.2,6.8389]
[1746636639982,6.837,146.24,146.2,6.8388]
[1746636640182,6.837,146.24,146.17,30.08]
[1746636640484,6.837,146.24,146.21,6.8384]
[1746636641087,6.837,146.24,146.17,30.08]
[1746636641382,6.8367,146.25,146.17,30.08]
[1746636641776,6.8367,146.25,146.22,6.8377]
[1746636641983,6.8371,146.24,146.21,30.06]
[1746636642486,6.8367,146.25,146.22,6.8377]
[1746636643085,32.1942,146.29,146.22,6.8377]
[1746636643383,44.42394219,146.29,146.21,30.06]
[1746636643785,6.8375,146.23,146.21,30.06]
[1746636644086,44.42394219,146.29,146.21,30.06]
[1746636644483,44.42394219,146.29,146.18,30.04]
[1746636644886,44.42394219,146.29,146.19,6.8393]
[1746636645185,32.1942,146.29,146.19,6.8393]
[1746636645385,6.8372,146.24,146.2,6.8386]
[1746636645779,32.1942,146.29,146.18,30.04]
[1746636645984,32.1942,146.29,146.24,6.837]
[1746636646384,32.1942,146.29,146.22,30.04]
[1746636646991,39.029,146.29,146.26,6.8358]
[1746636647385,32.1942,146.29,146.26,6.8358]
[1746636647683,34.2184,146.32,146.22,30.04]
[1746636647885,32.0909,146.32,146.23,4.1171]
[1746636648386,30.04,146.32,146.23,4.1171]
[1746636648791,6.8338,146.31,146.28,6.8349]
[1746636649281,30.04,146.32,146.26,30.04]
[1746636649483,30.04,146.32,146.23,34.1571]
[1746636649886,6.8351,146.28,146.25,6.8363]
[1746636650889,2.0948,146.31,146.23,30.04]
[1746636651888,6.8355,146.28,146.25,6.8365]
[1746636653190,6.8349,146.29,146.26,6.8358]
[1746636653383,30.04,146.32,146.23,30.04]
[1746636654190,30.04,146.32,146.24,4.3693]
[1746636654489,36.8736,146.32,146.29,6.8346]
[1746636655990,6.8338,146.31,146.28,6.8349]
[1746636656589,36.8735,146.32,146.28,6.8349]
[1746636657089,36.8735,146.32,146.29,6.8346]
[1746636657690,30.04,146.32,146.24,4.3693]
[1746636658292,36.8735,146.32,146.24,4.3693]
[1746636659090,36.8735,146.32,146.29,6.8344]
[1746636659292,6.8339,146.31,146.29,6.8344]
[1746636659591,30.04,146.32,146.24,2.1741]
[1746636659792,6.8345,146.3,146.27,6.8355]
[1746636660292,6.8351,146.29,146.23,30.04]
[1746636660592,30.04,146.32,146.23,30.04]
[1746636660790,6.835,146.29,146.26,6.8358]
[1746636660985,2.0317,146.31,146.23,30.04]
[1746636661387,6.8353,146.28,146.25,6.8363]
[1746636661595,2.0317,146.31,146.23,30.04]
[1746636661893,6.8352,146.28,146.25,6.8363]
[1746636662393,2.0317,146.31,146.25,6.8363]
[1746636662586,2.0317,146.31,146.24,6.8368]
[1746636662789,2.0317,146.31,146.2,32.06]
[1746636662987,6.8362,146.26,146.2,32.06]
[1746636663694,6.8366,146.25,146.22,6.8375]
[1746636663898,1.9884,146.27,146.2,30.02]
[1746636664196,4.1348,146.27,146.2,30.02]
[1746636664492,6.8366,146.25,146.22,6.8379]
[1746636664698,6.8366,146.25,146.2,30.02]
[1746636664994,4.1348,146.27,146.2,30.02]
[1746636665195,6.8366,146.25,146.2,30.02]
[1746636665697,4.1348,146.27,146.2,30.02]
[1746636666088,4.1348,146.27,146.17,621.0]
[1746636666294,6.8374,146.24,146.17,621.0]
[1746636666488,4.1348,146.27,146.17,621.0]
[1746636666695,4.1348,146.27,146.17,30.02]
[1746636667091,6.838,146.22,146.19,6.8391]
[1746636667300,30.02,146.24,146.17,30.02]
[1746636667598,6.8383,146.22,146.18,6.8395]
[1746636667800,30.02,146.24,146.18,6.8395]
[1746636668000,6.8387,146.21,146.18,6.8397]
[1746636668904,6.8389,146.2,146.17,36.8601]
[1746636669095,30.02,146.24,146.12,4.3404]
[1746636669300,2.1987,146.23,146.14,30.02]
[1746636669504,6.8393,146.2,146.16,6.8404]
[1746636669699,2.1987,146.23,146.16,6.8404]
[1746636670403,2.1987,146.23,146.16,6.8406]
[1746636671003,6.8392,146.2,146.17,6.8401]
[1746636671209,6.8392,146.2,146.14,30.02]
[1746636671604,6.8392,146.2,146.17,6.8402]
[1746636671800,6.8392,146.2,146.14,30.02]
[1746636672008,2.1987,146.23,146.14,30.02]
[1746636672511,6.839,146.2,146.17,6.84]
[1746636673310,2.1987,146.23,146.14,30.02]
[1746636673512,30.02,146.24,146.14,30.02]
[1746636673809,36.8573,146.24,146.21,6.8382]
[1746636674011,30.02,146.24,146.21,6.8382]
[1746636674812,36.8572,146.24,146.21,6.8382]
[1746636676814,6.8375,146.23,146.2,6.8387]
[1746636677111,30.02,146.24,146.18,30.02]
[1746636677312,6.8377,146.23,146.18,30.02]
[1746636677507,30.02,146.24,146.18,30.02]
[1746636678001,6.8382,146.22,146.19,6.839]
[1746636678608,6.8385,146.21,146.19,6.839]
[1746636678809,30.02,146.24,146.18,30.02]
[1746636679208,6.8379,146.23,146.18,30.02]
[1746636679415,6.8379,146.23,146.2,6.8386]
[1746636679712,6.8379,146.23,146.18,30.02]
[1746636680008,36.8571,146.24,146.18,30.02]
[1746636680209,34.1548,146.27,146.18,30.02]
[1746636681014,6.8376,146.23,146.21,6.8383]
[1746636681214,6.8376,146.23,146.18,30.02]
[1746636681707,34.1548,146.27,146.18,30.02]
[1746636682915,6.8379,146.23,146.19,6.8391]
[1746636683115,6.8379,146.23,146.18,30.02]
[1746636683419,6.8379,146.23,146.19,6.8392]
[1746636683716,6.838,146.22,146.19,6.8392]
[1746636683916,6.838,146.22,146.18,36.8596]
[1746636684712,34.1548,146.27,146.18,30.02]
[1746636685814,6.839,146.2,146.18,30.02]
[1746636686109,34.1548,146.27,146.18,30.02]
[1746636686316,34.1548,146.27,146.15,30.02]
[1746636686712,6.8388,146.21,146.16,6.8405]
[1746636686911,30.02,146.23,146.16,6.8405]
[1746636687309,30.02,146.23,146.17,6.8403]